fUSD/lending_fUSD_20250923
["ID","MTS","AMOUNT","RATE_DAILY","PERIOD"]
[387151571,1758594658681,-400.0,0.00020173,2]
[387151572,1758594658690,-400.0,0.00020173,2]
[387151573,1758594658699,-400.0,0.00020173,2]
[387151574,1758594658708,-400.0,0.00020173,2]
[387151575,1758594658717,-400.0,0.00020173,2]
[387151576,1758594658727,-400.0,0.00020173,2]
[387151577,1758594658736,-400.0,0.00020173,2]
[387151578,1758594658745,-421.25472652,0.00020173,2]
[387151579,1758594658754,-400.0,0.00020173,2]
[387151580,1758594658763,-400.0,0.00020173,2]
[387151581,1758594658772,-400.0,0.00020173,2]
[387151582,1758594658781,-400.0,0.00020173,2]
[387151583,1758594658791,-400.0,0.00020173,2]
[387151584,1758594658799,-400.0,0.00020173,2]
[387151585,1758594658809,-400.0,0.00020173,2]
[387151586,1758594658818,-400.0,0.00020173,2]
[387151587,1758594658827,-400.0,0.00020173,2]
[387151588,1758594658836,-400.0,0.00020173,2]
[387151589,1758594658845,-400.0,0.00020173,2]
[387151590,1758594658854,-400.0,0.00020173,2]
[387151591,1758594658863,-400.0,0.00020173,2]
[387151592,1758594658872,-400.0,0.00020173,2]
[387151593,1758594658881,-400.0,0.00020173,2]
[387151594,1758594658891,-400.0,0.00020173,2]
[387151595,1758594658900,-400.0,0.00020173,2]
[387151596,1758594658909,-400.0,0.00020173,2]
[387151597,1758594658918,-400.0,0.00020173,2]
[387151598,1758594658928,-2152.48,0.00020173,2]
[387151599,1758594658937,-2503.09,0.00020187,2]
[387151600,1758594658947,-1000.0,0.00020199,2]
[387151601,1758594658956,-1000.0,0.00020199,2]
[387151602,1758594658966,-200.0,0.000202,2]
[387151603,1758594658975,-208.75,0.00020215,2]
[387151604,1758594658984,-2842.23584495,0.00020217,2]
[387151605,1758594658994,-500.0,0.00020229,2]
[387151606,1758594659003,-500.0,0.00020229,2]
[387151607,1758594659012,-1215.87,0.00020229,2]
[387151608,1758594659021,-504.64,0.00020229,2]
[387151609,1758594659030,-500.0,0.00020229,2]
[387151610,1758594659040,-761.88,0.00020229,2]
[387151611,1758594659049,-761.88,0.00020229,2]
[387151612,1758594659059,-500.0,0.00020229,2]
[387151613,1758594659068,-500.0,0.00020229,2]
[387151614,1758594659077,-500.0,0.00020229,2]
[387151615,1758594659086,-500.0,0.00020229,2]
[387151616,1758594659095,-1658.14,0.00020229,2]
[387151617,1758594659106,-1658.14,0.00020229,2]
[387151618,1758594659115,-500.0,0.00020229,2]
[387151619,1758594659124,-500.0,0.00020229,2]
[387151620,1758594659134,-500.0,0.00020229,2]
[387151621,1758594659143,-500.0,0.00020229,2]
[387151622,1758594659152,-500.0,0.00020229,2]
[387151623,1758594659162,-500.0,0.00020229,2]
[387151624,1758594659171,-500.0,0.00020229,2]
[387151625,1758594659180,-179813.77914847,0.0002023,2]
[387151626,1758594659189,-6328.41918516,0.00020255,2]
[387151627,1758594659199,-400.0,0.00020262,2]
[387151628,1758594659208,-403.09783714,0.00020262,2]
[387151629,1758594659218,-400.0,0.00020262,2]
[387151630,1758594659229,-402.86134017,0.00020262,2]
[387151631,1758594659239,-400.0,0.00020262,2]
[387151632,1758594659250,-400.0,0.00020262,2]
[387151633,1758594659260,-400.0,0.00020262,2]
[387151634,1758594659270,-400.0,0.00020262,2]
[387151635,1758594659279,-400.0,0.00020262,2]
[387151636,1758594659289,-400.0,0.00020262,2]
[387151637,1758594659298,-400.0,0.00020262,2]
[387151638,1758594659307,-414.69838833,0.00020262,2]
[387151639,1758594659316,-400.69303203,0.00020262,2]
[387151640,1758594659326,-400.0,0.00020262,2]
[387151641,1758594659337,-400.0,0.00020262,2]
[387151642,1758594659346,-400.0,0.00020262,2]
[387151643,1758594659355,-400.0,0.00020262,2]
[387151644,1758594659364,-400.0,0.00020262,2]
[387151645,1758594659375,-400.0,0.00020262,2]
[387151646,1758594659385,-400.0,0.00020262,2]
[387151647,1758594659395,-400.0,0.00020262,2]
[387151648,1758594659405,-400.0,0.00020262,2]
[387151649,1758594659417,-400.0,0.00020262,2]
[387151650,1758594659428,-400.0,0.00020262,2]
[387151651,1758594659438,-400.0,0.00020262,2]
[387151652,1758594659448,-400.0,0.00020262,2]
[387151653,1758594659457,-400.0,0.00020262,2]
[387151654,1758594659467,-400.0,0.00020262,2]
[387151655,1758594659478,-333.35755172,0.00020262,2]
[387151656,1758594659488,-400.0,0.00020262,2]
[387151657,1758594659498,-400.0,0.00020262,2]
[387151658,1758594659509,-400.0,0.00020262,2]
[387151659,1758594659519,-400.0,0.00020262,2]
[387151660,1758594659529,-400.0,0.00020262,2]
[387151661,1758594659538,-400.0,0.00020262,2]
[387151662,1758594659547,-563.87,0.00020262,2]
[387151663,1758594659556,-400.0,0.00020262,2]
[387151664,1758594659566,-400.0,0.00020262,2]
[387151665,1758594659575,-400.0,0.00020262,2]
[387151666,1758594659583,-400.0,0.00020262,2]
[387151667,1758594659592,-400.0,0.00020262,2]
[387151668,1758594659601,-400.0,0.00020262,2]
[387151669,1758594659612,-861.42,0.00020262,2]
[387151670,1758594659621,-400.0,0.00020262,2]
[387151671,1758594659630,-400.0,0.00020262,2]
[387151672,1758594659646,-400.0,0.00020262,2]
[387151673,1758594659656,-400.0,0.00020262,2]
[387151674,1758594659665,-400.0,0.00020262,2]
[387151675,1758594659677,-1171.23,0.00020262,2]
[387151676,1758594659687,-400.0,0.00020262,2]
[387151677,1758594659699,-400.0,0.00020262,2]
[387151678,1758594659709,-713.98,0.00020262,2]
[387151679,1758594659719,-400.0,0.00020262,2]
[387151680,1758594659729,-400.0,0.00020262,2]
[387151681,1758594659739,-400.0,0.00020262,2]
[387151682,1758594659748,-400.0,0.00020262,2]
[387151683,1758594659757,-999.04,0.00020262,2]
[387151684,1758594659768,-1088.27,0.00020262,2]
[387151685,1758594659778,-400.0,0.00020262,2]
[387151686,1758594659788,-367.45782569,0.00020262,2]
[387151687,1758594659799,-512.22,0.00020262,2]
[387151688,1758594659809,-693.18,0.00020262,2]
[387151689,1758594659818,-400.0,0.00020262,2]
[387151690,1758594659827,-400.0,0.00020262,2]
[387151691,1758594659836,-400.0,0.00020262,2]
[387151692,1758594659846,-400.0,0.00020262,2]
[387151693,1758594659855,-400.0,0.00020262,2]
[387151694,1758594659866,-400.0,0.00020262,2]
[387151695,1758594659875,-500.0,0.00020262,2]
[387151696,1758594659885,-606.51,0.00020262,2]
[387151697,1758594659893,-553.34,0.00020262,2]
[387151698,1758594659903,-400.0,0.00020262,2]
[387151699,1758594659912,-442.08000013,0.00020262,2]
[387151700,1758594659923,-2287.66,0.00020262,2]
[387151701,1758594659933,-400.0,0.00020262,2]
[387151702,1758594659942,-400.0,0.00020262,2]
[387151703,1758594659952,-400.0,0.00020262,2]
[387151704,1758594659961,-400.0,0.00020262,2]
[387151705,1758594659971,-400.0,0.00020262,2]
[387151706,1758594659980,-400.0,0.00020262,2]
[387151707,1758594659990,-400.0,0.00020262,2]
[387151708,1758594660000,-1380.3,0.00020262,2]
[387151709,1758594660009,-400.0,0.00020262,2]
[387151710,1758594660019,-400.0,0.00020262,2]
[387151711,1758594660030,-400.0,0.00020262,2]
[387151712,1758594660039,-400.0,0.00020262,2]
[387151713,1758594660049,-400.0,0.00020262,2]
[387151714,1758594660059,-536.40504744,0.00020262,2]
[387151715,1758594660069,-400.0,0.00020262,2]
[387151716,1758594660079,-400.0,0.00020262,2]
[387151717,1758594660088,-400.0,0.00020262,2]
[387151718,1758594660098,-763.5,0.00020262,2]
[387151719,1758594660107,-400.0,0.00020262,2]
[387151720,1758594660117,-400.0,0.00020262,2]
[387151721,1758594660126,-400.0,0.00020262,2]
[387151722,1758594660136,-400.0,0.00020262,2]
[387151723,1758594660145,-400.0,0.00020262,2]
[387151724,1758594660155,-400.0,0.00020262,2]
[387151725,1758594660164,-400.0,0.00020262,2]
[387151726,1758594660174,-567.8,0.00020262,2]
[387151727,1758594660183,-429.820751,0.00020262,2]
[387151728,1758594660193,-400.0,0.00020262,2]
[387151729,1758594660202,-400.0,0.00020262,2]
[387151730,1758594660211,-500.0,0.00020263,2]
[387151731,1758594660220,-400.0,0.00020263,2]
[387151732,1758594660229,-400.0,0.00020263,2]
[387151733,1758594660239,-400.0,0.00020263,2]
[387151734,1758594660247,-400.0,0.00020263,2]
[387151735,1758594660257,-400.0,0.00020263,2]
[387151736,1758594660266,-404.76362441,0.00020263,2]
[387151737,1758594660276,-400.0,0.00020263,2]
[387151738,1758594660286,-407.15977247,0.00020263,2]
[387151739,1758594660296,-400.0,0.00020263,2]
[387151740,1758594660306,-546.02,0.00020263,2]
[387151741,1758594660316,-400.0,0.00020263,2]
[387151742,1758594660326,-400.0,0.00020263,2]
[387151743,1758594660336,-400.8044693,0.00020263,2]
[387151744,1758594660346,-400.0,0.00020263,2]
[387151745,1758594660357,-400.0,0.00020263,2]
[387151746,1758594660366,-397.74680009,0.00020263,2]
[387151747,1758594660376,-603.75,0.00020263,2]
[387151748,1758594660385,-400.0,0.00020263,2]
[387151749,1758594660395,-367.63839539,0.00020263,2]
[387151750,1758594660405,-400.0,0.00020263,2]
[387151751,1758594660415,-400.0,0.00020263,2]
[387151752,1758594660425,-406.75436762,0.00020263,2]
[387151753,1758594660434,-400.0,0.00020263,2]
[387151754,1758594660444,-481.21,0.00020263,2]
[387151755,1758594660453,-400.0,0.00020263,2]
[387151756,1758594660463,-400.0,0.00020263,2]
[387151757,1758594660473,-400.0,0.00020263,2]
[387151758,1758594660483,-400.0,0.00020263,2]
[387151759,1758594660493,-400.0,0.00020263,2]
[387151760,1758594660504,-400.0,0.00020263,2]
[387151761,1758594660515,-504.64,0.00020263,2]
[387151762,1758594660526,-400.0,0.00020263,2]
[387151763,1758594660537,-400.0,0.00020263,2]
[387151764,1758594660548,-401.36410164,0.00020263,2]
[387151765,1758594660561,-400.0,0.00020263,2]
[387151766,1758594660572,-400.0,0.00020263,2]
[387151767,1758594660583,-400.0,0.00020263,2]
[387151768,1758594660594,-428.04,0.00020263,2]
[387151769,1758594660605,-400.0,0.00020263,2]
[387151770,1758594660616,-400.0,0.00020263,2]
[387151771,1758594660628,-594.36,0.00020263,2]
[387151772,1758594660641,-400.0,0.00020263,2]
[387151773,1758594660652,-400.0,0.00020263,2]
[387151774,1758594660662,-631.31,0.00020263,2]
[387151775,1758594660671,-400.0,0.00020263,2]
[387151776,1758594660681,-402.29041973,0.00020263,2]
[387151777,1758594660691,-400.0,0.00020263,2]
[387151778,1758594660701,-400.0,0.00020263,2]
[387151779,1758594660710,-400.0,0.00020263,2]
[387151780,1758594660720,-519.59,0.00020263,2]
[387151781,1758594660731,-400.0,0.00020263,2]
[387151782,1758594660742,-400.0,0.00020263,2]
[387151783,1758594660754,-579.47,0.00020263,2]
[387151784,1758594660765,-400.0,0.00020263,2]
[387151785,1758594660776,-400.0,0.00020263,2]
[387151786,1758594660786,-641.97,0.00020263,2]
[387151787,1758594660796,-401.6039917,0.00020263,2]
[387151788,1758594660805,-400.0,0.00020263,2]
[387151789,1758594660815,-522.69,0.00020263,2]
[387151790,1758594660824,-400.0,0.00020263,2]
[387151791,1758594660833,-400.0,0.00020263,2]
[387151792,1758594660844,-400.0,0.00020263,2]
[387151793,1758594660855,-400.0,0.00020263,2]
[387151794,1758594660865,-400.0,0.00020263,2]
[387151795,1758594660875,-417.55,0.00020263,2]
[387151796,1758594660885,-400.0,0.00020263,2]
[387151797,1758594660895,-400.0,0.00020263,2]
[387151798,1758594660906,-400.0,0.00020263,2]
[387151799,1758594660917,-400.0,0.00020263,2]
[387151800,1758594660928,-400.0,0.00020263,2]
[387151801,1758594660938,-400.92074533,0.00020263,2]
[387151802,1758594660949,-624.74,0.00020263,2]
[387151803,1758594660960,-400.0,0.00020263,2]
[387151804,1758594660970,-400.0,0.00020263,2]
[387151805,1758594660980,-400.0,0.00020263,2]
[387151806,1758594660990,-172.28472138,0.00020263,2]
[387151807,1758594661000,-400.0,0.00020263,2]
[387151808,1758594661010,-400.0,0.00020263,2]
[387151809,1758594661020,-400.0,0.00020263,2]
[387151810,1758594661030,-400.0,0.00020263,2]
[387151811,1758594661040,-400.0,0.00020263,2]
[387151812,1758594661052,-400.0,0.00020263,2]
[387151813,1758594661062,-445.25,0.00020263,2]
[387151814,1758594661072,-400.0,0.00020263,2]
[387151815,1758594661082,-400.0,0.00020263,2]
[387151816,1758594661091,-400.0,0.00020263,2]
[387151817,1758594661101,-400.0,0.00020263,2]
[387151818,1758594661111,-400.0,0.00020263,2]
[387151819,1758594661121,-588.21,0.00020263,2]
[387151820,1758594661131,-400.0,0.00020263,2]
[387151821,1758594661142,-400.0,0.00020263,2]
[387151822,1758594661151,-400.0,0.00020263,2]
[387151823,1758594661161,-400.0,0.00020263,2]
[387151824,1758594661170,-400.0,0.00020263,2]
[387151825,1758594661180,-401.07837203,0.00020263,2]
[387151826,1758594661190,-413.10042918,0.00020263,2]
[387151827,1758594661199,-400.0,0.00020263,2]
[387151828,1758594661209,-400.0,0.00020263,2]
[387151829,1758594661219,-586.63,0.00020263,2]
[387151830,1758594661228,-400.0,0.00020263,2]
[387151831,1758594661237,-495.19,0.00020263,2]
[387151832,1758594661247,-428.662191,0.00020263,2]
[387151833,1758594661257,-400.0,0.00020263,2]
[387151834,1758594661266,-411.20349881,0.00020263,2]
[387151835,1758594661276,-400.0,0.00020263,2]
[387151836,1758594661286,-400.0,0.00020263,2]
[387151837,1758594661295,-412.4201895,0.00020263,2]
[387151838,1758594661305,-400.0,0.00020263,2]
[387151839,1758594661314,-537.35405896,0.00020263,2]
[387151840,1758594661324,-400.0,0.00020263,2]
[387151841,1758594661333,-401.6755706,0.00020263,2]
[387151842,1758594661348,-470.99507316,0.00020263,2]
[387151843,1758594661358,-400.0,0.00020263,2]
[387151844,1758594661367,-400.0,0.00020263,2]
[387151845,1758594661377,-400.0,0.00020263,2]
[387151846,1758594661386,-400.0,0.00020263,2]
[387151847,1758594661396,-400.0,0.00020263,2]
[387151848,1758594661405,-400.0,0.00020263,2]
[387151849,1758594661415,-400.0,0.00020263,2]
[387151850,1758594661424,-400.0,0.00020263,2]
[387151851,1758594661433,-400.0,0.00020263,2]
[387151852,1758594661443,-400.0,0.00020263,2]
[387151853,1758594661452,-400.0,0.00020263,2]
[387151854,1758594661461,-400.0,0.00020263,2]
[387151855,1758594661471,-513.54,0.00020263,2]
[387151856,1758594661480,-407.88798332,0.00020263,2]
[387151857,1758594661490,-400.0,0.00020263,2]
[387151858,1758594661499,-400.93599847,0.00020263,2]
[387151859,1758594661509,-400.0,0.00020263,2]
[387151860,1758594661518,-400.0,0.00020263,2]
[387151861,1758594661527,-400.0,0.00020263,2]
[387151862,1758594661537,-400.0,0.00020263,2]
[387151863,1758594661546,-400.0,0.00020263,2]
[387151864,1758594661555,-400.0,0.00020263,2]
[387151865,1758594661565,-400.0,0.00020263,2]
[387151866,1758594661574,-460.65,0.00020263,2]
[387151867,1758594661584,-510.4,0.00020263,2]
[387151868,1758594661593,-400.0,0.00020263,2]
[387151869,1758594661602,-400.0,0.00020263,2]
[387151870,1758594661612,-400.0,0.00020263,2]
[387151871,1758594661621,-400.0,0.00020263,2]
[387151872,1758594661631,-400.0,0.00020263,2]
[387151873,1758594661643,-400.0,0.00020263,2]
[387151874,1758594661652,-400.0,0.00020263,2]
[387151875,1758594661663,-400.0,0.00020263,2]
[387151876,1758594661674,-400.0,0.00020263,2]
[387151877,1758594661687,-400.0,0.00020263,2]
[387151878,1758594661697,-510.77,0.00020263,2]
[387151879,1758594661706,-404.74184824,0.00020263,2]
[387151880,1758594661719,-400.0,0.00020263,2]
[387151881,1758594661730,-400.0,0.00020263,2]
[387151882,1758594661740,-400.0,0.00020263,2]
[387151883,1758594661750,-400.0,0.00020263,2]
[387151884,1758594661759,-400.0,0.00020263,2]
[387151885,1758594661769,-400.0,0.00020263,2]
[387151886,1758594661779,-300.0,0.00020263,2]
[387151887,1758594661789,-574.52,0.00020263,2]
[387151888,1758594661799,-400.0,0.00020263,2]
[387151889,1758594661809,-400.0,0.00020263,2]
[387151890,1758594661819,-400.0,0.00020263,2]
[387151891,1758594661829,-272.17191306,0.00020263,2]
[387151892,1758594661839,-400.0,0.00020263,2]
[387151893,1758594661849,-477.17,0.00020263,2]
[387151894,1758594661859,-646.11,0.00020263,2]
[387151895,1758594661869,-401.50476047,0.00020263,2]
[387151896,1758594661879,-761.88,0.00020263,2]
[387151897,1758594661888,-400.0,0.00020263,2]
[387151898,1758594661898,-805.01,0.00020263,2]
[387151899,1758594661909,-406.54704575,0.00020263,2]
[387151900,1758594661918,-400.0,0.00020263,2]
[387151901,1758594661928,-400.0,0.00020263,2]
[387151902,1758594661940,-400.0,0.00020263,2]
[387151903,1758594661950,-397.93842106,0.00020263,2]
[387151904,1758594661959,-400.0,0.00020263,2]
[387151905,1758594661970,-400.0,0.00020263,2]
[387151906,1758594661981,-400.0,0.00020263,2]
[387151907,1758594661992,-400.0,0.00020263,2]
[387151908,1758594662003,-400.0,0.00020263,2]
[387151909,1758594662013,-400.0,0.00020263,2]
[387151910,1758594662023,-400.0,0.00020263,2]
[387151911,1758594662033,-402.11406651,0.00020263,2]
[387151912,1758594662043,-400.0,0.00020263,2]
[387151913,1758594662054,-542.84,0.00020263,2]
[387151914,1758594662064,-401.29207513,0.00020263,2]
[387151915,1758594662074,-400.0,0.00020263,2]
[387151916,1758594662085,-400.0,0.00020263,2]
[387151917,1758594662095,-400.0,0.00020263,2]
[387151918,1758594662105,-400.0,0.00020263,2]
[387151919,1758594662115,-400.0,0.00020263,2]
[387151920,1758594662126,-400.0,0.00020263,2]
[387151921,1758594662138,-288.52358045,0.00020263,2]
[387151922,1758594662148,-400.0,0.00020263,2]
[387151923,1758594662158,-400.0,0.00020263,2]
[387151924,1758594662168,-487.21,0.00020263,2]
[387151925,1758594662178,-400.0,0.00020263,2]
[387151926,1758594662188,-401.72496315,0.00020263,2]
[387151927,1758594662197,-400.0,0.00020263,2]
[387151928,1758594662207,-400.0,0.00020263,2]
[387151929,1758594662217,-400.0,0.00020263,2]
[387151930,1758594662227,-400.0,0.00020263,2]
[387151931,1758594662237,-400.0,0.00020263,2]
[387151932,1758594662247,-400.0,0.00020263,2]
[387151933,1758594662257,-403.04,0.00020263,2]
[387151934,1758594662266,-400.0,0.00020263,2]
[387151935,1758594662276,-400.0,0.00020263,2]
[387151936,1758594662287,-400.0,0.00020263,2]
[387151937,1758594662296,-400.0,0.00020263,2]
[387151938,1758594662307,-400.0,0.00020263,2]
[387151939,1758594662317,-400.0,0.00020263,2]
[387151940,1758594662327,-400.0,0.00020263,2]
[387151941,1758594662336,-413.73891553,0.00020263,2]
[387151942,1758594662347,-400.0,0.00020263,2]
[387151943,1758594662356,-500.0,0.00020263,2]
[387151944,1758594662367,-500.0,0.00020263,2]
[387151945,1758594662377,-400.0,0.00020263,2]
[387151946,1758594662386,-753.12,0.00020263,2]
[387151947,1758594662396,-400.0,0.00020263,2]
[387151948,1758594662405,-400.0,0.00020263,2]
[387151949,1758594662415,-666.59,0.00020263,2]
[387151950,1758594662425,-556.26,0.00020263,2]
[387151951,1758594662435,-554.35,0.00020263,2]
[387151952,1758594662445,-590.86,0.00020263,2]
[387151953,1758594662454,-424.71,0.00020263,2]
[387151954,1758594662464,-432.16,0.00020263,2]
[387151955,1758594662474,-666.7,0.00020263,2]
[387151956,1758594662484,-416.38331878,0.00020263,2]
[387151957,1758594662494,-400.0,0.00020263,2]
[387151958,1758594662507,-400.0,0.00020263,2]
[387151959,1758594662518,-663.26,0.00020263,2]
[387151960,1758594662723,-624.36,0.00020263,2]
[387151961,1758594662735,-400.0,0.00020263,2]
[387151962,1758594662744,-539.22,0.00020263,2]
[387151963,1758594662753,-400.0,0.00020263,2]
[387151964,1758594662762,-400.0,0.00020263,2]
[387151965,1758594662771,-400.0,0.00020263,2]
[387151966,1758594662781,-1601.31,0.00020263,2]
[387151967,1758594662791,-400.0,0.00020263,2]
[387151968,1758594662800,-762.7,0.00020263,2]
[387151969,1758594662810,-521.84,0.00020263,2]
[387151970,1758594662819,-400.0,0.00020263,2]
[387151971,1758594662828,-425.97,0.00020263,2]
[387151972,1758594662838,-504.36096202,0.00020263,2]
[387151973,1758594662847,-413.12,0.00020263,2]
[387151974,1758594662857,-1043.87,0.00020263,2]
[387151975,1758594662867,-500.0,0.00020263,2]
[387151976,1758594662877,-400.0,0.00020263,2]
[387151977,1758594662886,-400.0,0.00020263,2]
[387151978,1758594662896,-1288.11,0.00020263,2]
[387151979,1758594662905,-400.0,0.00020263,2]
[387151980,1758594662914,-613.14,0.00020263,2]
[387151981,1758594662923,-400.0,0.00020263,2]
[387151982,1758594662933,-400.0,0.00020263,2]
[387151983,1758594662942,-1257.59,0.00020263,2]
[387151984,1758594662952,-419.44774324,0.00020263,2]
[387151985,1758594662961,-400.0,0.00020263,2]
[387151986,1758594662970,-1065.79,0.00020263,2]
[387151987,1758594662979,-1260.98,0.00020263,2]
[387151988,1758594662989,-521.31,0.00020263,2]
[387151989,1758594662999,-234.15363561,0.00020263,2]
[387151990,1758594663010,-1320.59,0.00020263,2]
[387151991,1758594663019,-717.98,0.00020263,2]
[387151992,1758594663033,-400.0,0.00020263,2]
[387151993,1758594663044,-2962.18,0.00020263,2]
[387151994,1758594663054,-460.54,0.00020263,2]
[387151995,1758594663064,-400.0,0.00020263,2]
[387151996,1758594663074,-257.00878633,0.00020263,2]
[387151997,1758594663083,-400.0,0.00020263,2]
[387151998,1758594663094,-409.08340857,0.00020263,2]
[387151999,1758594663103,-400.0,0.00020263,2]
[387152000,1758594663115,-560.56,0.00020263,2]
[387152001,1758594663124,-400.0,0.00020263,2]
[387152002,1758594663134,-745.47,0.00020263,2]
[387152003,1758594663143,-400.0,0.00020263,2]
[387152004,1758594663154,-400.0,0.00020263,2]
[387152005,1758594663164,-405.48642262,0.00020263,2]
[387152006,1758594663173,-400.0,0.00020263,2]
[387152007,1758594663182,-416.41,0.00020263,2]
[387152008,1758594663192,-400.0,0.00020263,2]
[387152009,1758594663201,-400.0,0.00020263,2]
[387152010,1758594663210,-400.0,0.00020263,2]
[387152011,1758594663219,-400.0,0.00020263,2]
[387152012,1758594663229,-606.55,0.00020263,2]
[387152013,1758594663238,-400.0,0.00020263,2]
[387152014,1758594663247,-500.0,0.00020263,2]
[387152015,1758594663256,-400.0,0.00020263,2]
[387152016,1758594663265,-400.0,0.00020263,2]
[387152017,1758594663275,-400.0,0.00020263,2]
[387152018,1758594663284,-400.0,0.00020263,2]
[387152019,1758594663294,-2070.63,0.00020263,2]
[387152020,1758594663303,-400.0,0.00020263,2]
[387152021,1758594663312,-632.22,0.00020263,2]
[387152022,1758594663321,-603.1,0.00020263,2]
[387152023,1758594663331,-400.0,0.00020263,2]
[387152024,1758594663341,-636.89,0.00020263,2]
[387152025,1758594663350,-2770.57,0.00020263,2]
[387152026,1758594663359,-400.0,0.00020263,2]
[387152027,1758594663370,-527.8485586,0.00020263,2]
[387152028,1758594663379,-539.51,0.00020263,2]
[387152029,1758594663388,-985.61,0.00020263,2]
[387152030,1758594663397,-400.0,0.00020263,2]
[387152031,1758594663407,-4088.1,0.00020263,2]
[387152032,1758594663416,-400.0,0.00020263,2]
[387152033,1758594663425,-401.45567207,0.00020263,2]
[387152034,1758594663434,-408.9,0.00020263,2]
[387152035,1758594663443,-400.0,0.00020263,2]
[387152036,1758594663453,-1658.14,0.00020263,2]
[387152037,1758594663462,-309.87299132,0.00020263,2]
[387152038,1758594663471,-400.0,0.00020263,2]
[387152039,1758594663480,-4553.48,0.00020263,2]
[387152040,1758594663490,-400.0,0.00020263,2]
[387152041,1758594663500,-400.0,0.00020263,2]
[387152042,1758594663509,-1678.44,0.00020263,2]
[387152043,1758594663519,-397.55608707,0.00020263,2]
[387152044,1758594663528,-536.52,0.00020263,2]
[387152045,1758594663538,-547.61,0.00020263,2]
[387152046,1758594663547,-400.0,0.00020263,2]
[387152047,1758594663557,-903.87,0.00020263,2]
[387152048,1758594663566,-919.85,0.00020263,2]
[387152049,1758594663576,-397.651633,0.00020263,2]
[387152050,1758594663586,-1039.24,0.00020263,2]
[387152051,1758594663596,-231.92375119,0.00020263,2]
[387152052,1758594663605,-607.49021288,0.00020263,2]
[387152053,1758594663616,-397.56746458,0.00020263,2]
[387152054,1758594663625,-400.0,0.00020263,2]
[387152055,1758594663635,-400.0,0.00020263,2]
[387152056,1758594663652,-402.03758218,0.00020263,2]
[387152057,1758594663661,-734.86,0.00020263,2]
[387152058,1758594663672,-400.0,0.00020263,2]
[387152059,1758594663682,-443.7,0.00020263,2]
[387152060,1758594663691,-853.6,0.00020263,2]
[387152061,1758594663701,-448.39,0.00020263,2]
[387152062,1758594663710,-400.0,0.00020263,2]
[387152063,1758594663720,-400.0,0.00020263,2]
[387152064,1758594663730,-400.0,0.00020263,2]
[387152065,1758594663739,-400.0,0.00020263,2]
[387152066,1758594663748,-548.69,0.00020263,2]
[387152067,1758594663758,-728.78,0.00020263,2]
[387152068,1758594663768,-500.0,0.00020263,2]
[387152069,1758594663778,-406.64,0.00020263,2]
[387152070,1758594663789,-400.0,0.00020263,2]